fUST/lending_fUST_20260605
["ID","MTS","AMOUNT","RATE_DAILY","PERIOD"]
[424177353,1780629041000,-300.0,0.00018263,2]
[424177357,1780629041000,-300.0,0.00018263,2]
[424177360,1780629041000,-300.0,0.00018263,2]
[424177371,1780629041000,-151.3,0.000195,2]
[424177365,1780629041000,-1000.0,0.00018739,2]
[424177370,1780629041000,-278.64,0.00019452,2]
[424177368,1780629041000,-278.64,0.00019178,2]
[424177369,1780629041000,-200.281,0.00019194,2]
[424177362,1780629041000,-6667.7755817,0.00018324,2]
[424177363,1780629041000,-292.61646313,0.00018328,2]
[424177361,1780629041000,-300.0,0.00018263,2]
[424177364,1780629041000,-278.64,0.0001863,2]
[424177342,1780629041000,-207.77195845,0.00017905,2]
[424177343,1780629041000,-319.67548231,0.00017905,2]
[424177329,1780629041000,-4570.39902875,9.228e-05,2]
[424177331,1780629041000,-1704.7750512,9.415e-05,9]
[424177332,1780629041000,-628.26334296,0.0001,2]
[424177330,1780629041000,-152.0,9.321e-05,2]
[424177334,1780629041000,-151.3,0.000139,2]
[424177333,1780629041000,-151.3,0.00012,2]
[424177335,1780629041000,-151.3,0.000158,2]
[424177337,1780629041000,-373.33723266,0.00017029,2]
[424177341,1780629041000,-1200.0,0.00017904,2]
[424177349,1780629041000,-300.0,0.00018263,2]
[424177347,1780629041000,-300.0,0.00018263,2]
[424177348,1780629041000,-300.0,0.00018263,2]
[424177340,1780629041000,-300.0,0.00017904,2]
[424177339,1780629041000,-151.3,0.000176,2]
[424177338,1780629041000,-560.005849,0.00017555,2]
[424177344,1780629041000,-172.84358806,0.00017905,2]
[424177345,1780629041000,-746.67446533,0.00017905,2]
[424177346,1780629041000,-933.34308166,0.00018256,2]
[424177336,1780629041000,-186.7097484,0.00016239,2]
[424177367,1780629041000,-768.06331103,0.00019155,2]
[424177409,1780629041000,-500.0,0.00024776,2]
[424177372,1780629041000,-1680.0,0.00019634,2]
[424177388,1780629041000,-278.64,0.00021918,2]
[424177389,1780629041000,-209.10571117,0.00021918,2]
[424177398,1780629041000,-582.851,0.00024304,2]
[424177400,1780629041000,-157.0,0.00024385,120]
[424177401,1780629041000,-500.0,0.00024776,2]
[424177404,1780629041000,-500.0,0.00024776,2]
[424177402,1780629041000,-500.0,0.00024776,2]
[424177399,1780629041000,-188.317,0.00024304,2]
[424177405,1780629041000,-500.0,0.00024776,2]
[424177406,1780629041000,-500.0,0.00024776,2]
[424177410,1780629041000,-500.0,0.00024776,2]
[424177408,1780629041000,-500.0,0.00024776,2]
[424177407,1780629041000,-500.0,0.00024776,2]
[424177412,1780629041000,-500.0,0.00024776,2]
[424177411,1780629041000,-500.0,0.00024776,2]
[424177415,1780629041000,-500.0,0.00024776,2]
[424177414,1780629041000,-500.0,0.00024776,2]
[424177366,1780629041000,-278.64,0.00018904,2]
[424177413,1780629041000,-500.0,0.00024776,2]
[424177386,1780629041000,-278.64,0.00021644,2]
[424177391,1780629041000,-278.64,0.00022192,2]
[424177403,1780629041000,-500.0,0.00024776,2]
[424177384,1780629041000,-151.3,0.000214,2]
[424177374,1780629041000,-278.64,0.0002,2]
[424177392,1780629041000,-278.7,0.00022466,2]
[424177376,1780629041000,-278.64,0.00020274,2]
[424177377,1780629041000,-278.64,0.00020548,2]
[424177373,1780629041000,-278.64,0.00019726,2]
[424177378,1780629041000,-278.64,0.00020822,2]
[424177381,1780629041000,-278.64,0.00021096,2]
[424177379,1780629041000,-500.0,0.00020822,2]
[424177380,1780629041000,-500.0,0.00021096,2]
[424177382,1780629041000,-278.64,0.0002137,2]
[424177375,1780629041000,-1605.69653508,0.00020174,2]
[424177385,1780629041000,-500.0,0.00021644,2]
[424177387,1780629041000,-529.79161844,0.00021918,2]
[424177390,1780629041000,-418.21142233,0.00021918,2]
[424177393,1780629041000,-577.74889424,0.00022631,2]
[424177397,1780629041000,-153.84669189,0.00023385,120]
[424177394,1780629041000,-500.0,0.00022631,2]
[424177395,1780629041000,-500.0,0.00022631,2]
[424177383,1780629041000,-500.0,0.0002137,2]
[424177396,1780629041000,-157.0,0.00023385,120]
[424177449,1780629042000,-2393.73,0.00025241,2]
[424177442,1780629042000,-500.0,0.00025226,2]
[424177439,1780629042000,-207.53960643,0.00025225,2]
[424177440,1780629042000,-240.14165301,0.00025225,2]
[424177436,1780629042000,-223.27819594,0.00025142,2]
[424177438,1780629042000,-223.27819594,0.00025193,2]
[424177443,1780629042000,-307.3101315,0.00025227,2]
[424177447,1780629042000,-2393.73,0.00025241,2]
[424177441,1780629042000,-500.0,0.00025226,2]
[424177446,1780629042000,-2393.73,0.00025241,2]
[424177453,1780629042000,-2393.73,0.00025242,2]
[424177445,1780629042000,-21760.7150357,0.00025227,2]
[424177450,1780629042000,-2393.73,0.00025241,2]
[424177454,1780629042000,-2393.73,0.00025242,2]
[424177452,1780629042000,-2393.73,0.00025242,2]
[424177460,1780629042000,-2393.73,0.00025242,2]
[424177462,1780629042000,-2393.73,0.00025242,2]
[424177458,1780629042000,-2393.73,0.00025242,2]
[424177457,1780629042000,-2393.73,0.00025242,2]
[424177444,1780629042000,-1350.3533759,0.00025227,2]
[424177448,1780629042000,-2393.73,0.00025241,2]
[424177424,1780629042000,-225.7039272,0.00024776,2]
[424177435,1780629042000,-4939.57449202,0.00025142,2]
[424177455,1780629042000,-2393.73,0.00025242,2]
[424177422,1780629042000,-629.49196578,0.00024776,2]
[424177423,1780629042000,-500.0,0.00024776,2]
[424177419,1780629042000,-500.0,0.00024776,2]
[424177418,1780629042000,-500.0,0.00024776,2]
[424177416,1780629042000,-500.0,0.00024776,2]
[424177417,1780629042000,-500.0,0.00024776,2]
[424177420,1780629042000,-500.0,0.00024776,2]
[424177421,1780629042000,-500.0,0.00024776,2]
[424177425,1780629042000,-500.0,0.00024776,2]
[424177427,1780629042000,-500.0,0.00024776,2]
[424177429,1780629042000,-500.0,0.00024776,2]
[424177428,1780629042000,-500.0,0.00024776,2]
[424177426,1780629042000,-500.0,0.00024776,2]
[424177432,1780629042000,-500.0,0.00024776,2]
[424177433,1780629042000,-244.35165965,0.00024776,2]
[424177434,1780629042000,-2393.73,0.00025112,2]
[424177431,1780629042000,-500.0,0.00024776,2]
[424177430,1780629042000,-500.0,0.00024776,2]
[424177437,1780629042000,-160.0,0.00025169,2]
[424177461,1780629042000,-2393.73,0.00025242,2]
[424177495,1780629042000,-500.0,0.00025442,2]
[424177456,1780629042000,-2393.73,0.00025242,2]
[424177485,1780629042000,-4104.61455278,0.00025441,2]
[424177484,1780629042000,-4104.61455278,0.00025441,2]
[424177483,1780629042000,-4104.61455278,0.00025441,2]
[424177490,1780629042000,-297.25403384,0.00025442,2]
[424177498,1780629042000,-500.0,0.00025442,2]
[424177500,1780629042000,-199.14859678,0.00025443,2]
[424177489,1780629042000,-4104.61455278,0.00025441,2]
[424177499,1780629042000,-500.0,0.00025442,2]
[424177501,1780629042000,-500.0,0.00025443,2]
[424177502,1780629042000,-342.81860374,0.00025443,2]
[424177492,1780629042000,-500.0,0.00025442,2]
[424177491,1780629042000,-500.0,0.00025442,2]
[424177493,1780629042000,-210.32125666,0.00025442,2]
[424177494,1780629042000,-500.0,0.00025442,2]
[424177496,1780629042000,-500.0,0.00025442,2]
[424177497,1780629042000,-500.0,0.00025442,2]
[424177505,1780629042000,-869.84708787,0.00025444,2]
[424177503,1780629042000,-463356.87952707,0.00025444,2]
[424177451,1780629042000,-2393.73,0.00025242,2]
[424177479,1780629042000,-4104.61455278,0.00025441,2]
[424177477,1780629042000,-4104.61455278,0.00025441,2]
[424177504,1780629042000,-223.27819594,0.00025243,2]
[424177478,1780629042000,-4104.61455278,0.00025441,2]
[424177459,1780629042000,-2393.73,0.00025242,2]
[424177465,1780629042000,-2393.73,0.00025242,2]
[424177481,1780629042000,-4104.61455278,0.00025441,2]
[424177464,1780629042000,-2393.73,0.00025242,2]
[424177475,1780629042000,-588.35499514,0.00025441,2]
[424177466,1780629042000,-2393.73,0.00025242,2]
[424177467,1780629042000,-2393.73,0.00025242,2]
[424177476,1780629042000,-4104.61455278,0.00025441,2]
[424177468,1780629042000,-2393.79026004,0.00025242,2]
[424177469,1780629042000,-300.0,0.00025242,2]
[424177463,1780629042000,-2393.73,0.00025242,2]
[424177473,1780629042000,-500.0,0.00025386,2]
[424177474,1780629042000,-4104.61455278,0.00025441,2]
[424177472,1780629042000,-157.70076341,0.00025385,120]
[424177470,1780629042000,-1415.0,0.00025324,2]
[424177480,1780629042000,-4104.61455278,0.00025441,2]
[424177482,1780629042000,-4104.61455278,0.00025441,2]
[424177487,1780629042000,-4104.61455278,0.00025441,2]
[424177488,1780629042000,-4104.61455278,0.00025441,2]
[424177486,1780629042000,-4104.61455278,0.00025441,2]
[424177471,1780629042000,-3631.0,0.00025324,2]
[424177506,1780629043000,-4178.82924272,0.0001808,2]
[424177509,1780629044000,-3151.5674533,0.00025444,2]
[424177507,1780629044000,-821.17075728,0.0001808,2]
[424177508,1780629044000,-24218.82924267,0.00025444,2]
[424177514,1780629046000,-223.27819594,0.00025344,2]
[424177513,1780629046000,-223.27819594,0.00025294,2]
[424177516,1780629046000,-31250.00000001,0.00025444,2]
[424177517,1780629046000,-6250.0,0.00025444,2]
[424177515,1780629046000,-98.94360812,0.00025444,2]
[424178121,1780629086000,508.8,8.205e-05,2]
[424178124,1780629087000,508.81,8.205e-05,2]
[424178123,1780629087000,508.8,8.205e-05,2]
[424178122,1780629087000,508.8,8.205e-05,2]
[424178127,1780629135000,161.0,0.0002,120]
[424178129,1780629160000,297.7,0.000232,120]
[424178140,1780629296000,192.24,8.205e-05,2]
[424178142,1780629297000,192.26,8.205e-05,2]
[424178141,1780629297000,192.24,8.205e-05,2]
[424178205,1780630232000,-330.79220253,8.426e-05,2]
[424178204,1780630232000,-5000.0,8.342e-05,2]
[424178219,1780630232000,-335.23079958,8.426e-05,2]
[424178223,1780630232000,-26.43643482,9.999e-05,2]
[424178221,1780630232000,-151.0,8.683e-05,2]
[424178269,1780630238000,-1173.56356518,9.999e-05,2]
[424178272,1780630238000,-167.24653094,0.0001,2]
[424178270,1780630238000,-26.43643482,0.0001,2]
[424178277,1780630238000,-300.0,0.00010199,2]
[424178271,1780630238000,-1661.21776242,0.0001,2]
[424178275,1780630238000,-300.0,0.00010199,2]
[424178276,1780630238000,-300.0,0.00010199,2]
[424178273,1780630238000,-300.0,0.00010199,2]
[424178278,1780630238000,-300.0,0.00010199,2]
[424178274,1780630238000,-300.0,0.00010199,2]
[424178300,1780630239000,-1000.0,0.00013699,2]
[424178280,1780630239000,-300.0,0.00010199,2]
[424178299,1780630239000,-720.0,0.00013574,2]
[424178306,1780630239000,-150.88,0.00015,2]
[424178302,1780630239000,-166.99,0.00014019,2]
[424178320,1780630239000,-244.0,0.00018067,2]
[424178303,1780630239000,-150.88,0.000142,2]
[424178308,1780630239000,-150.88,0.000155,2]
[424178307,1780630239000,-222.1909656,0.00015068,2]
[424178310,1780630239000,-150.88,0.000163,2]
[424178304,1780630239000,-150.88,0.000146,2]
[424178313,1780630239000,-30003.73010154,0.00017,2]
[424178312,1780630239000,-150.88,0.000168,2]
[424178301,1780630239000,-150.88,0.000137,2]
[424178305,1780630239000,-864.0,0.00014931,2]
[424178294,1780630239000,-600.0,0.0001234,2]
[424178298,1780630239000,-150.88,0.000133,2]
[424178316,1780630239000,-168.71517365,0.00017973,2]
[424178279,1780630239000,-300.0,0.00010199,2]
[424178284,1780630239000,-300.0,0.00010199,2]
[424178281,1780630239000,-300.0,0.00010199,2]
[424178292,1780630239000,-150.84,0.00012,2]
[424178282,1780630239000,-300.0,0.00010199,2]
[424178297,1780630239000,-150.88,0.000129,2]
[424178286,1780630239000,-300.0,0.00010199,2]
[424178289,1780630239000,-300.0,0.00010199,2]
[424178293,1780630239000,-1977.0,0.00012099,2]
[424178296,1780630239000,-2117.1523184,0.00012735,2]
[424178291,1780630239000,-1680.0,0.00010999,2]
[424178295,1780630239000,-150.88,0.000124,2]
[424178290,1780630239000,-300.0,0.00010199,2]
[424178288,1780630239000,-300.0,0.00010199,2]
[424178321,1780630239000,-150.88,0.000181,2]
[424178327,1780630239000,-513.64,0.00018904,2]
[424178315,1780630239000,-150.88,0.000176,2]
[424178349,1780630239000,-319557.71973256,0.0002,2]
[424178311,1780630239000,-1000.0,0.00016424,2]
[424178339,1780630239000,-5010.90656771,0.00019896,2]
[424178343,1780630239000,-5000.0,0.00019896,2]
[424178341,1780630239000,-5000.0,0.00019896,2]
[424178342,1780630239000,-5000.0,0.00019896,2]
[424178344,1780630239000,-2000.0,0.00019905,7]
[424178347,1780630239000,-2654.49916054,0.0002,2]
[424178348,1780630239000,-513.64,0.0002,2]
[424178337,1780630239000,-1000.0,0.00019874,2]
[424178335,1780630239000,-513.64,0.00019726,2]
[424178338,1780630239000,-492.0,0.00019874,2]
[424178345,1780630239000,-4615.17152393,0.00019964,2]
[424178336,1780630239000,-150.88,0.000198,2]
[424178328,1780630239000,-513.64,0.00019178,2]
[424178340,1780630239000,-5000.0,0.00019896,2]
[424178331,1780630239000,-866.43,0.000194,2]
[424178330,1780630239000,-160.0,0.00019314,2]
[424178314,1780630239000,-150.88,0.000172,2]
[424178317,1780630239000,-699.9603,0.00018,2]
[424178309,1780630239000,-150.88,0.000159,2]
[424178319,1780630239000,-1000.0,0.00018067,2]
[424178318,1780630239000,-500.0,0.00018,2]
[424178322,1780630239000,-500.0,0.000181,2]
[424178346,1780630239000,-496.47005834,0.00019998,2]
[424178333,1780630239000,-409.7998,0.000194,2]
[424178325,1780630239000,-513.64,0.0001863,2]
[424178334,1780630239000,-513.64,0.00019452,2]
[424178323,1780630239000,-500.0,0.00018374,2]
[424178324,1780630239000,-150.88,0.000185,2]
[424178326,1780630239000,-150.88,0.000189,2]
[424178332,1780630239000,-150.88,0.000194,2]
[424178329,1780630239000,-160.225,0.00019228,2]
[424178358,1780630241000,-2188.48428634,9.899e-05,2]
[424178372,1780630243000,-3738.07369515,0.0002,2]
[424178371,1780630243000,-1018.98034819,9.899e-05,2]
[424178373,1780630244000,-21941.73,0.0002,2]
[424178376,1780630244000,-1136183.88400052,0.0002,2]
[424178374,1780630244000,-1420.0,0.0002,2]
[424178375,1780630244000,-7612.38510398,0.0002,2]
[424178387,1780630246000,-2103.44016914,0.000171,2]
[424178388,1780630246000,-24193.36738301,0.0002,2]
[424178390,1780630246000,-48201.39344485,0.0002,2]
[424178389,1780630246000,-280.2939363,0.0002,2]
[424178391,1780630256000,5000.0,8.205e-05,2]
[424178392,1780630272000,-151.0,8.256e-05,2]
[424178396,1780630523000,177.04299124,0.00023455,120]
[424178397,1780630524000,177.04299124,0.00023455,120]
[424178399,1780630524000,177.04299124,0.00023455,120]
[424178398,1780630524000,177.04299124,0.00023455,120]
[424178400,1780630525000,177.04299124,0.00023455,120]
[424178401,1780630525000,177.04299124,0.00023455,120]
[424178402,1780630525000,177.04299124,0.00023455,120]
[424178403,1780630526000,177.04299124,0.00023455,120]
[424178418,1780630848000,5000.0,8.205e-05,2]
[424178419,1780630870000,5000.0,8.205e-05,2]
[424178420,1780630892000,5000.0,8.205e-05,2]
[424178421,1780630900000,3798.82726432,8.205e-05,2]
[424178422,1780630914000,5000.0,8.205e-05,2]
[424178424,1780630936000,5000.0,8.205e-05,2]
[424178426,1780630958000,5000.0,8.205e-05,2]
[424178427,1780630980000,5000.0,8.205e-05,2]
[424178428,1780631002000,5000.0,8.205e-05,2]
[424178429,1780631017000,1782.2462,8.205e-05,2]
[424178430,1780631178000,1211.01,0.00023433,30]
[424178435,1780631314000,312.49151816,8.205e-05,2]
[424178439,1780631414000,-229.14282136,8.681e-05,7]
[424178472,1780631432000,-720.49265734,8.503e-05,2]
[424178508,1780631438000,-338.02875684,8.503e-05,2]
[424178510,1780631438000,-161.97124316,8.589e-05,2]
[424178606,1780631439000,-791.0,0.00015836,2]
[424178610,1780631439000,-307.0986,0.000166,2]
[424178608,1780631439000,-880.6282,0.000166,2]
[424178600,1780631439000,-166.77,0.0001537,2]
[424178612,1780631439000,-1000.0,0.0001742,2]
[424178598,1780631439000,-175.661697,0.00015068,2]
[424178604,1780631439000,-1000.0,0.00015836,2]
[424178602,1780631439000,-271.26,0.00015757,2]
[424178614,1780631439000,-1000.0,0.0001742,2]
[424178596,1780631439000,-492.0,0.00014397,2]
[424178592,1780631439000,-500.0,0.00014396,2]
[424178594,1780631439000,-1000.0,0.00014397,2]
[424178616,1780631439000,-622.26965904,0.00017772,2]
[424178620,1780631439000,-156.38162305,0.00017954,2]
[424178632,1780631439000,-1000.0,0.00019162,2]
[424178634,1780631439000,-1000.0,0.00019162,2]
[424178590,1780631439000,-180.1655711,0.00013804,2]
[424178638,1780631439000,-160.225,0.00019215,2]
[424178622,1780631439000,-1695.02,0.00018,2]
[424178636,1780631439000,-579.0,0.00019162,2]
[424178624,1780631439000,-275.99644959,0.00018,2]
[424178626,1780631439000,-512.25,0.00018,2]
[424178628,1780631439000,-2435.76244104,0.0001853,2]
[424178630,1780631439000,-363.42609597,0.00019091,2]
[424178644,1780631439000,-169.08618077,0.000193,2]
[424178656,1780631439000,-583.96,0.000194,2]
[424178646,1780631439000,-1120.08538627,0.00019341,2]
[424178618,1780631439000,-153.76017578,0.00017953,2]
[424178588,1780631439000,-1000.0,0.00013699,2]
[424178582,1780631439000,-151.24,0.00012,2]
[424178572,1780631439000,-664.59643736,0.0001,2]
[424178535,1780631439000,-1200.0,8.764e-05,2]
[424178533,1780631439000,-5000.0,8.676e-05,2]
[424178537,1780631439000,-300.0,8.765e-05,2]
[424178539,1780631439000,-300.0,8.765e-05,2]
[424178531,1780631439000,-2347.02481941,8.589e-05,2]
[424178541,1780631439000,-300.0,8.765e-05,2]
[424178551,1780631439000,-300.0,8.765e-05,2]
[424178553,1780631439000,-300.0,8.765e-05,2]
[424178556,1780631439000,-300.0,8.765e-05,2]
[424178543,1780631439000,-300.0,8.765e-05,2]
[424178545,1780631439000,-300.0,8.765e-05,2]
[424178554,1780631439000,-300.0,8.765e-05,2]
[424178558,1780631439000,-300.0,8.765e-05,2]
[424178550,1780631439000,-300.0,8.765e-05,2]
[424178547,1780631439000,-300.0,8.765e-05,2]
[424178564,1780631439000,-300.0,8.765e-05,2]
[424178560,1780631439000,-300.0,8.765e-05,2]
[424178562,1780631439000,-300.0,8.765e-05,2]
[424178566,1780631439000,-600.0,8.939e-05,2]
[424178576,1780631439000,-864.0,0.00010817,2]
[424178578,1780631439000,-1000.0,0.00011898,2]
[424178586,1780631439000,-244.0,0.00013088,2]
[424178574,1780631439000,-197.0,0.00010604,2]
[424178580,1780631439000,-151.24,0.00012,2]
[424178584,1780631439000,-1000.0,0.00013088,2]
[424178568,1780631439000,-1680.0,9.64e-05,2]
[424178658,1780631439000,-169.08618077,0.000195,2]
[424178570,1780631439000,-720.0,9.833e-05,2]
[424178650,1780631439000,-768.06331103,0.00019343,2]
[424178642,1780631439000,-169.08618078,0.000193,2]
[424178664,1780631439000,-449.18310574,0.00019812,2]
[424178721,1780631439000,-500.0,0.00019812,2]
[424178723,1780631439000,-500.0,0.00019812,2]
[424178725,1780631439000,-266.63644981,0.00019812,2]
[424178727,1780631439000,-500.0,0.00019812,2]
[424178729,1780631439000,-500.0,0.00019812,2]
[424178652,1780631439000,-1932.33,0.000194,2]
[424178740,1780631439000,-500.0,0.00019812,2]
[424178741,1780631439000,-500.0,0.00019812,2]
[424178744,1780631439000,-500.0,0.00019812,2]
[424178735,1780631439000,-500.0,0.00019812,2]
[424178733,1780631439000,-500.0,0.00019812,2]
[424178739,1780631439000,-500.0,0.00019812,2]
[424178742,1780631439000,-500.0,0.00019812,2]
[424178707,1780631439000,-500.0,0.00019812,2]
[424178743,1780631439000,-500.0,0.00019812,2]
[424178738,1780631439000,-500.0,0.00019812,2]
[424178737,1780631439000,-500.0,0.00019812,2]
[424178747,1780631439000,-500.0,0.00019812,2]
[424178746,1780631439000,-500.0,0.00019812,2]
[424178750,1780631439000,-500.0,0.00019812,2]
[424178748,1780631439000,-500.0,0.00019812,2]
[424178749,1780631439000,-260.75604385,0.00019812,2]
[424178751,1780631439000,-500.0,0.00019812,2]
[424178752,1780631439000,-500.0,0.00019812,2]
[424178755,1780631439000,-500.0,0.00019812,2]
[424178756,1780631439000,-5148.4056891,0.00019813,2]
[424178753,1780631439000,-500.0,0.00019812,2]
[424178754,1780631439000,-500.0,0.00019812,2]
[424178745,1780631439000,-500.0,0.00019812,2]
[424178709,1780631439000,-500.0,0.00019812,2]
[424178731,1780631439000,-500.0,0.00019812,2]
[424178719,1780631439000,-500.0,0.00019812,2]
[424178660,1780631439000,-169.08618077,0.000197,2]
[424178648,1780631439000,-707.48247313,0.00019341,2]
[424178662,1780631439000,-500.0,0.00019812,2]
[424178654,1780631439000,-194.7977,0.000194,2]
[424178666,1780631439000,-500.0,0.00019812,2]
[424178703,1780631439000,-500.0,0.00019812,2]
[424178669,1780631439000,-500.0,0.00019812,2]
[424178671,1780631439000,-500.0,0.00019812,2]
[424178675,1780631439000,-500.0,0.00019812,2]
[424178673,1780631439000,-500.0,0.00019812,2]
[424178677,1780631439000,-500.0,0.00019812,2]
[424178681,1780631439000,-500.0,0.00019812,2]
[424178683,1780631439000,-612.39889507,0.00019812,2]
[424178679,1780631439000,-500.0,0.00019812,2]
[424178667,1780631439000,-500.0,0.00019812,2]
[424178687,1780631439000,-500.0,0.00019812,2]
[424178685,1780631439000,-500.0,0.00019812,2]
[424178705,1780631439000,-500.0,0.00019812,2]
[424178717,1780631439000,-477.45683307,0.00019812,2]
[424178713,1780631439000,-500.0,0.00019812,2]
[424178701,1780631439000,-500.0,0.00019812,2]
[424178711,1780631439000,-500.0,0.00019812,2]
[424178715,1780631439000,-500.0,0.00019812,2]
[424178699,1780631439000,-500.0,0.00019812,2]
[424178697,1780631439000,-500.0,0.00019812,2]
[424178693,1780631439000,-221.19196999,0.00019812,2]
[424178691,1780631439000,-500.0,0.00019812,2]
[424178689,1780631439000,-500.0,0.00019812,2]
[424178695,1780631439000,-500.0,0.00019812,2]
[424178777,1780631440000,-4272.21603052,0.00019998,2]
[424178761,1780631440000,-500.0,0.00019996,2]
[424178766,1780631440000,-500.0,0.00019996,2]
[424178763,1780631440000,-500.0,0.00019996,2]
[424178764,1780631440000,-500.0,0.00019996,2]
[424178759,1780631440000,-500.0,0.00019996,2]
[424178760,1780631440000,-500.0,0.00019996,2]
[424178758,1780631440000,-9000.6418633,0.00019813,2]
[424178757,1780631440000,-15308.5340256,0.00019813,2]
[424178774,1780631440000,-4272.21603052,0.00019998,2]
[424178768,1780631440000,-500.0,0.00019996,2]
[424178776,1780631440000,-4272.21603052,0.00019998,2]
[424178772,1780631440000,-475.80769897,0.00019998,2]
[424178770,1780631440000,-194.5884593,0.00019997,2]
[424178779,1780631440000,-4272.21603052,0.00019998,2]
[424178762,1780631440000,-500.0,0.00019996,2]
[424178791,1780631440000,-4272.21603052,0.00019998,2]
[424178804,1780631440000,-4272.21603052,0.00019998,2]
[424178789,1780631440000,-4272.21603052,0.00019998,2]
[424178814,1780631440000,-86364.45285716,0.0002,2]
[424178817,1780631440000,-154246.93862936,0.0002,2]
[424178810,1780631440000,-4272.21603052,0.00019998,2]
[424178809,1780631440000,-4272.21603052,0.00019998,2]
[424178812,1780631440000,-300.0,0.00019999,2]
[424178806,1780631440000,-4272.21603052,0.00019998,2]
[424178801,1780631440000,-4272.21603052,0.00019998,2]
[424178802,1780631440000,-4272.21603052,0.00019998,2]
[424178797,1780631440000,-4272.21603052,0.00019998,2]
[424178793,1780631440000,-4272.21603052,0.00019998,2]
[424178787,1780631440000,-4272.21603052,0.00019998,2]
[424178795,1780631440000,-4272.21603052,0.00019998,2]
[424178785,1780631440000,-4272.21603052,0.00019998,2]
[424178783,1780631440000,-4272.21603052,0.00019998,2]
[424178799,1780631440000,-4272.21603052,0.00019998,2]
[424178781,1780631440000,-4272.21603052,0.00019998,2]
[424178876,1780631441000,-375.43267108,0.0002,2]
[424178877,1780631441000,-1246.85715906,0.0002,2]
[424178878,1780631441000,-509.65437049,0.0002,2]
[424178909,1780631447000,-10110.0631321,0.0002,2]
[424178910,1780631447000,-1656.32897106,0.0002,2]
[424178918,1780631621000,153.0,0.0002,120]
[424178954,1780632072000,-151.0,9.415e-05,2]
[424178994,1780632116000,735.18814121,0.00023436,30]
[424178999,1780632262000,232.43,0.00023288,120]
[424179100,1780632631000,-870.35,0.00018904,2]
[424179098,1780632631000,-870.35,0.0001863,2]
[424179091,1780632631000,-151.24,0.00012,2]
[424179097,1780632631000,-322.00824781,0.00017954,2]
[424179096,1780632631000,-172.69618397,0.00017815,2]
[424179095,1780632631000,-175.661697,0.00017725,2]
[424179092,1780632631000,-161.00412391,0.00017602,2]
[424179094,1780632631000,-1000.0,0.0001761,2]
[424179103,1780632631000,-160.0,0.00019366,2]
[424179090,1780632631000,-151.24,0.00012,2]
[424179089,1780632631000,-860.91474937,0.0001,2]
[424179087,1780632631000,-575.55957208,8.865e-05,2]
[424179088,1780632631000,-5000.0,8.955e-05,2]
[424179093,1780632631000,-523.0,0.00017609,2]
[424179101,1780632631000,-870.35,0.00019178,2]
[424179102,1780632631000,-299.99,0.000192,3]
[424179116,1780632631000,-500.0,0.00019998,2]
[424179117,1780632631000,-251.84849442,0.00019998,2]
[424179118,1780632631000,-20.87801722,0.00019998,2]
[424179114,1780632631000,-500.0,0.00019998,2]
[424179115,1780632631000,-500.0,0.00019998,2]
[424179112,1780632631000,-870.35,0.00019726,2]
[424179111,1780632631000,-945.58564119,0.00019675,2]
[424179113,1780632631000,-234.503,0.00019899,2]
[424179107,1780632631000,-594.36746662,0.00019669,2]
[424179109,1780632631000,-625.0330656,0.0001967,2]